fUSD/lending_fUSD_20250201
["ID","MTS","AMOUNT","RATE_DAILY","PERIOD"]
[351165163,1738384232612,-121.59893549,0.00016363,2]
[351165165,1738384232624,-31.40106451,0.00016363,2]
[351165167,1738384232633,-153.0,0.00016363,2]
[351165169,1738384232642,-153.0,0.00016363,2]
[351165171,1738384232651,-153.0,0.00016363,2]
[351165173,1738384232660,-153.0,0.00016363,2]
[351165175,1738384232670,-153.0,0.00016363,2]
[351165177,1738384232679,-202.0,0.0001653,2]
[351165179,1738384232688,-256.63,0.00016813,2]
[351165181,1738384232697,-202.0,0.0001691,2]
[351165183,1738384232707,-368.13,0.00016922,2]
[351165185,1738384232716,-380.44,0.00016922,2]
[351165187,1738384232725,-376.17,0.00016922,2]
[351165189,1738384232735,-800.0,0.00016922,2]
[351165191,1738384232744,-150.0,0.00016967,2]
[351165193,1738384232753,-202.0,0.0001729,2]
[351165195,1738384232762,-1807.11,0.00017381,2]
[351165197,1738384232771,-221.78,0.00017414,2]
[351165199,1738384232780,-1000.0,0.00017483,2]
[351165201,1738384232790,-219.92,0.00017543,2]
[351165203,1738384232799,-202.0,0.0001767,2]
[351165205,1738384232808,-761.31,0.00017689,2]
[351165207,1738384232817,-935.68,0.00018,2]
[351165209,1738384232827,-500.0,0.00018018,2]
[351165211,1738384232836,-800.0,0.00018018,2]
[351165213,1738384232846,-367.5,0.00018018,2]
[351165215,1738384232855,-381.69,0.00018018,2]
[351165217,1738384232863,-202.0,0.0001805,2]
[351165218,1738384232872,-1693.65282242,0.0001807,2]
[351165220,1738384232881,-150.0,0.0001807,2]
[351165222,1738384232891,-625.67,0.00018082,2]
[351165224,1738384232900,-3887.10481692,0.00018125,2]
[351165279,1738384233434,-4315.55495221,0.00018125,2]
[351165536,1738384240120,-12880.34023087,0.00018125,2]
[351165538,1738384240130,-302.0,0.00018181,2]
[351165540,1738384240139,-500.0,0.00018315,2]
[351165542,1738384240148,-500.0,0.00018315,2]
[351165544,1738384240158,-500.0,0.00018315,2]
[351165546,1738384240167,-500.0,0.00018315,2]
[351165548,1738384240176,-123.83396956,0.00018315,2]
[351165550,1738384240188,-376.16603044,0.00018315,2]
[351165552,1738384240197,-500.0,0.00018315,2]
[351165554,1738384240207,-500.0,0.00018315,2]
[351165556,1738384240216,-500.0,0.00018315,2]
[351165558,1738384240226,-500.0,0.00018315,2]
[351165560,1738384240236,-500.0,0.00018315,2]
[351165562,1738384240246,-500.0,0.00018315,2]
[351165564,1738384240255,-500.0,0.00018315,2]
[351165566,1738384240264,-500.0,0.00018315,2]
[351165568,1738384240276,-500.0,0.00018315,2]
[351165570,1738384240285,-601.0,0.00018315,2]
[351165572,1738384240294,-202.0,0.0001843,2]
[351165574,1738384240304,-150.0,0.00018614,2]
[351165576,1738384240314,-12145.02909232,0.00018617,2]
[351165579,1738384240327,-14173.66303001,0.00018617,2]
[351165581,1738384240336,-500.0,0.00018688,2]
[351165583,1738384240345,-500.0,0.00018688,2]
[351165584,1738384240357,-500.0,0.00018688,2]
[351165587,1738384240367,-500.0,0.00018688,2]
[351165589,1738384240376,-500.0,0.00018688,2]
[351165591,1738384240385,-500.0,0.00018688,2]
[351165592,1738384240394,-500.0,0.00018688,2]
[351165594,1738384240404,-500.0,0.00018688,2]
[351165596,1738384240413,-500.0,0.00018688,2]
[351165599,1738384240423,-500.0,0.00018688,2]
[351165600,1738384240432,-500.0,0.00018688,2]
[351165603,1738384240442,-500.0,0.00018688,2]
[351165605,1738384240451,-500.0,0.00018688,2]
[351165606,1738384240460,-500.0,0.00018688,2]
[351165608,1738384240470,-500.0,0.00018688,2]
[351165610,1738384240479,-500.0,0.00018688,2]
[351165612,1738384240488,-500.0,0.00018688,2]
[351165615,1738384240498,-500.0,0.00018688,2]
[351165616,1738384240507,-500.0,0.00018688,2]
[351165618,1738384240516,-941.0,0.00018688,2]
[351165620,1738384240526,-760.826,0.00018688,2]
[351165623,1738384240535,-500.0,0.00018729,2]
[351165625,1738384240545,-625.67,0.00018751,2]
[351165627,1738384240554,-1795.8452,0.00018768,2]
[351165629,1738384240563,-1000.0,0.00018768,2]
[351165631,1738384240572,-4774.72749699,0.00018769,2]
[351165693,1738384241147,-378.1805,0.00018769,2]
[351165873,1738384243038,-9206.35710301,0.00018769,2]
[351165875,1738384243048,-1365.5274,0.00018769,2]
[351165877,1738384243057,-5000.0,0.0001877,2]
[351165878,1738384243066,-308.653,0.00018777,2]
[351165879,1738384243076,-378.708,0.00018777,2]
[351165880,1738384243085,-220.3308,0.00018777,2]
[351165881,1738384243095,-502.76925894,0.00018777,2]
[351165882,1738384243104,-233.72478372,0.0001878,2]
[351165883,1738384243114,-380.96,0.00018799,2]
[351165884,1738384243123,-8606.97028185,0.00018804,2]
[351165885,1738384243132,-202.0,0.0001881,2]
[351165886,1738384243142,-151.69371315,0.00018858,2]
[351165887,1738384243151,-500.0,0.00018867,2]
[351165888,1738384243160,-751.06,0.00018867,2]
[351165889,1738384243169,-2438.04,0.00018867,2]
[351165890,1738384243178,-1046.61,0.00018867,2]
[351165891,1738384243187,-6168.88,0.00018867,2]
[351165892,1738384243196,-828.67,0.00018867,2]
[351165893,1738384243206,-2626.82,0.00018867,2]
[351165894,1738384243215,-1754.48,0.00018867,2]
[351165895,1738384243224,-500.0,0.00018867,2]
[351165896,1738384243235,-1889.33,0.00018867,2]
[351165897,1738384243244,-881.84,0.00018867,2]
[351165898,1738384243253,-1409.57,0.00018867,2]
[351165900,1738384243264,-500.0,0.00018867,2]
[351165901,1738384243276,-1637.96,0.00018867,2]
[351165902,1738384243286,-1880.5,0.00018867,2]
[351165903,1738384243295,-4076.53,0.00018867,2]
[351165904,1738384243304,-500.0,0.00018867,2]
[351165905,1738384243315,-3286.0,0.00018867,2]
[351165908,1738384243324,-3496.41,0.00018867,2]
[351165909,1738384243333,-2246.21,0.00018867,2]
[351165911,1738384243342,-2896.71,0.00018867,2]
[351165912,1738384243351,-2528.13,0.00018867,2]
[351165913,1738384243360,-563.36,0.00018867,2]
[351165914,1738384243370,-500.0,0.00018867,2]
[351165915,1738384243380,-975.34,0.00018867,2]
[351165916,1738384243390,-1382.13,0.00018867,2]
[351165917,1738384243399,-1947.81,0.00018867,2]
[351165918,1738384243409,-3562.24,0.00018867,2]
[351165919,1738384243418,-3480.55,0.00018867,2]
[351165920,1738384243427,-2782.75,0.00018867,2]
[351165921,1738384243436,-2386.17,0.00018867,2]
[351165922,1738384243445,-500.0,0.00018867,2]
[351165923,1738384243455,-1154.99,0.00018867,2]
[351165924,1738384243464,-697.64,0.00018867,2]
[351165925,1738384243474,-500.0,0.00018867,2]
[351165926,1738384243483,-1831.21,0.00018867,2]
[351165927,1738384243492,-500.0,0.00018867,2]
[351165928,1738384243501,-619.56,0.00018867,2]
[351165929,1738384243510,-500.0,0.00018867,2]
[351165930,1738384243520,-500.0,0.00018867,2]
[351165931,1738384243529,-508.93906571,0.00018867,2]
[351165932,1738384243539,-505.85750057,0.00018867,2]
[351165933,1738384243548,-500.0,0.00018867,2]
[351165934,1738384243557,-5045.89,0.00018867,2]
[351165935,1738384243566,-500.0,0.00018867,2]
[351165936,1738384243575,-500.0,0.00018867,2]
[351165937,1738384243584,-607.7,0.00018867,2]
[351165938,1738384243593,-500.0,0.00018867,2]
[351165939,1738384243604,-962.74,0.00018867,2]
[351165940,1738384243613,-500.0,0.00018867,2]
[351165941,1738384243623,-500.0,0.00018867,2]
[351165942,1738384243632,-500.0,0.00018867,2]
[351165943,1738384243642,-500.0,0.00018867,2]
[351165944,1738384243651,-441.23496718,0.00018867,2]
[351165945,1738384243660,-1747.1,0.00018867,2]
[351165946,1738384243670,-1552.12,0.00018867,2]
[351165947,1738384243679,-803.35,0.00018867,2]
[351165948,1738384243689,-500.0,0.00018867,2]
[351165949,1738384243698,-500.0,0.00018867,2]
[351165950,1738384243708,-500.0,0.00018867,2]
[351165951,1738384243717,-672.11,0.00018868,2]
[351165952,1738384243726,-500.0,0.00018868,2]
[351165953,1738384243735,-606.18203145,0.00018868,2]
[351165954,1738384243745,-500.0,0.00018868,2]
[351165955,1738384243754,-500.0,0.00018868,2]
[351165956,1738384243764,-500.0,0.00018868,2]
[351165957,1738384243773,-500.0,0.00018868,2]
[351165958,1738384243783,-501.84831217,0.00018868,2]
[351165959,1738384243792,-1216.57,0.00018868,2]
[351165960,1738384243802,-500.0,0.00018868,2]
[351165961,1738384243811,-500.0,0.00018868,2]
[351165962,1738384243821,-500.0,0.00018868,2]
[351165963,1738384243830,-500.0,0.00018868,2]
[351165964,1738384243839,-503.93074023,0.00018868,2]
[351165965,1738384243849,-500.0,0.00018868,2]
[351165966,1738384243860,-857.24,0.00018868,2]
[351165967,1738384243869,-877.92,0.00018868,2]
[351165968,1738384243879,-967.16,0.00018868,2]
[351165969,1738384243889,-500.0,0.00018868,2]
[351165970,1738384243907,-500.0,0.00018868,2]
[351165971,1738384243917,-500.0,0.00018868,2]
[351165972,1738384243926,-500.0,0.00018868,2]
[351165973,1738384243936,-500.0,0.00018868,2]
[351165974,1738384243945,-500.0,0.00018868,2]
[351165975,1738384243955,-500.0,0.00018868,2]
[351165976,1738384243964,-781.66,0.00018868,2]
[351165977,1738384243973,-540.55,0.00018868,2]
[351165978,1738384243982,-500.0,0.00018868,2]
[351165979,1738384243992,-500.0,0.00018868,2]
[351165980,1738384244001,-500.0,0.00018868,2]
[351165981,1738384244010,-500.13374474,0.00018868,2]
[351165982,1738384244020,-500.0,0.00018868,2]
[351165983,1738384244030,-802.02,0.00018868,2]
[351165984,1738384244039,-500.0,0.00018868,2]
[351165985,1738384244049,-500.0,0.00018868,2]
[351165986,1738384244058,-500.0,0.00018868,2]
[351165987,1738384244067,-500.0,0.00018868,2]
[351165988,1738384244077,-500.0,0.00018868,2]
[351165989,1738384244086,-500.0,0.00018868,2]
[351165990,1738384244095,-500.0,0.00018868,2]
[351165991,1738384244106,-500.0,0.00018868,2]
[351165992,1738384244115,-500.0,0.00018868,2]
[351165993,1738384244124,-500.0,0.00018868,2]
[351165994,1738384244135,-500.0,0.00018868,2]
[351165995,1738384244145,-500.0,0.00018868,2]
[351165996,1738384244154,-500.0,0.00018868,2]
[351165997,1738384244163,-500.0,0.00018868,2]
[351165998,1738384244173,-500.0,0.00018868,2]
[351165999,1738384244182,-500.0,0.00018868,2]
[351166000,1738384244190,-500.0,0.00018868,2]
[351166001,1738384244199,-553.05595971,0.00018868,2]
[351166002,1738384244208,-500.0,0.00018868,2]
[351166003,1738384244218,-500.0,0.00018868,2]
[351166004,1738384244227,-655.84,0.00018868,2]
[351166005,1738384244237,-552.94,0.00018868,2]
[351166006,1738384244246,-500.0,0.00018868,2]
[351166007,1738384244261,-500.0,0.00018868,2]
[351166008,1738384244279,-500.0,0.00018868,2]
[351166009,1738384244289,-500.0,0.00018868,2]
[351166010,1738384244298,-500.0,0.00018868,2]
[351166011,1738384244307,-534.86,0.00018868,2]
[351166012,1738384244318,-500.0,0.00018868,2]
[351166013,1738384244327,-755.23,0.00018868,2]
[351166014,1738384244337,-500.0,0.00018868,2]
[351166015,1738384244346,-500.0,0.00018868,2]
[351166016,1738384244356,-500.0,0.00018868,2]
[351166017,1738384244367,-500.0,0.00018868,2]
[351166018,1738384244377,-836.33,0.00018868,2]
[351166019,1738384244386,-500.0,0.00018868,2]
[351166020,1738384244396,-531.09239601,0.00018868,2]
[351166021,1738384244406,-503.62318097,0.00018868,2]
[351166022,1738384244415,-750.23,0.00018868,2]
[351166023,1738384244424,-509.46262216,0.00018868,2]
[351166024,1738384244434,-500.0,0.00018868,2]
[351166025,1738384244444,-746.66,0.00018868,2]
[351166026,1738384244453,-500.0,0.00018868,2]
[351166027,1738384244462,-500.0,0.00018868,2]
[351166028,1738384244471,-500.0,0.00018868,2]
[351166029,1738384244480,-500.0,0.00018868,2]
[351166030,1738384244489,-500.0,0.00018868,2]
[351166031,1738384244498,-1276.97,0.00018868,2]
[351166032,1738384244507,-500.0,0.00018868,2]
[351166033,1738384244518,-500.0,0.00018868,2]
[351166034,1738384244527,-500.0,0.00018868,2]
[351166035,1738384244536,-500.0,0.00018868,2]
[351166036,1738384244546,-500.0,0.00018868,2]
[351166037,1738384244555,-1288.27,0.00018868,2]
[351166038,1738384244564,-3286.62,0.00018868,2]
[351166039,1738384244574,-500.0,0.00018868,2]
[351166040,1738384244583,-848.52,0.00018868,2]
[351166041,1738384244592,-421.432719,0.00018868,2]
[351166042,1738384244604,-500.0,0.00018868,2]
[351166043,1738384244613,-500.0,0.00018868,2]
[351166044,1738384244623,-170.635549,0.00018868,2]
[351166045,1738384244632,-500.0,0.00018868,2]
[351166046,1738384244642,-2344.29,0.00018868,2]
[351166047,1738384244651,-500.0,0.00018868,2]
[351166048,1738384244661,-500.0,0.00018868,2]
[351166049,1738384244670,-1177.89,0.00018868,2]
[351166050,1738384244680,-500.0,0.00018868,2]
[351166051,1738384244689,-932.02,0.00018868,2]
[351166052,1738384244698,-493.144117,0.00018868,2]
[351166053,1738384244708,-500.0,0.00018868,2]
[351166054,1738384244717,-1517.41,0.00018868,2]
[351166055,1738384244727,-500.0,0.00018868,2]
[351166056,1738384244736,-500.0,0.00018868,2]
[351166057,1738384244745,-500.0,0.00018868,2]
[351166058,1738384244755,-500.0,0.00018868,2]
[351166059,1738384244764,-500.0,0.00018868,2]
[351166060,1738384244774,-500.0,0.00018868,2]
[351166061,1738384244784,-4320.42,0.00018868,2]
[351166062,1738384244794,-500.0,0.00018868,2]
[351166063,1738384244803,-1731.45,0.00018868,2]
[351166064,1738384244814,-1209.54,0.00018868,2]
[351166065,1738384244824,-411.48506421,0.00018868,2]
[351166066,1738384244834,-1439.25,0.00018868,2]
[351166067,1738384244843,-500.0,0.00018868,2]
[351166068,1738384244853,-500.0,0.00018868,2]
[351166069,1738384244863,-524.88,0.00018868,2]
[351166070,1738384244873,-1165.53,0.00018868,2]
[351166071,1738384244882,-500.0,0.00018868,2]
[351166072,1738384244891,-3547.47,0.00018868,2]
[351166073,1738384244900,-500.0,0.00018868,2]
[351166074,1738384244909,-2230.36,0.00018868,2]
[351166075,1738384244919,-523.80730397,0.00018868,2]
[351166076,1738384244928,-1527.18,0.00018868,2]
[351166077,1738384244937,-500.0,0.00018868,2]
[351166078,1738384244946,-500.0,0.00018868,2]
[351166079,1738384244955,-500.0,0.00018868,2]
[351166080,1738384244965,-3476.03,0.00018868,2]
[351166081,1738384244974,-500.0,0.00018868,2]
[351166082,1738384244983,-3275.53,0.00018868,2]
[351166083,1738384244992,-500.0,0.00018868,2]
[351166084,1738384245001,-513.33,0.00018868,2]
[351166085,1738384245011,-4372.74,0.00018868,2]
[351166086,1738384245020,-599.71,0.00018868,2]
[351166087,1738384245029,-1013.25,0.00018868,2]
[351166088,1738384245039,-500.0,0.00018868,2]
[351166089,1738384245048,-1004.23,0.00018868,2]
[351166090,1738384245057,-2690.66,0.00018868,2]
[351166091,1738384245066,-2117.77,0.00018868,2]
[351166092,1738384245075,-806.01,0.00018868,2]
[351166093,1738384245085,-4553.11,0.00018868,2]
[351166094,1738384245097,-574.51,0.00018868,2]
[351166095,1738384245107,-500.0,0.00018868,2]
[351166096,1738384245116,-500.0,0.00018868,2]
[351166097,1738384245125,-500.0,0.00018868,2]
[351166098,1738384245134,-1098.37,0.00018868,2]
[351166099,1738384245143,-248.19765466,0.00018868,2]
[351166100,1738384245152,-1118907.18384809,0.00018868,2]
[351166101,1738384245162,-500.0,0.00018869,2]
[351166102,1738384245171,-1194.26,0.00018869,2]
[351166103,1738384245180,-500.0,0.00018869,2]
[351166104,1738384245190,-500.0,0.00018869,2]
[351166105,1738384245199,-500.0,0.00018869,2]
[351166106,1738384245338,-502.17828662,0.00018869,2]
[351166107,1738384245349,-500.0,0.00018869,2]
[351166108,1738384245359,-500.0,0.00018869,2]
[351166109,1738384245368,-500.33180187,0.00018869,2]
[351166110,1738384245377,-173.93946728,0.00018869,2]
[351166111,1738384245386,-500.0,0.00018869,2]
[351166112,1738384245395,-500.0,0.00018869,2]
[351166113,1738384245405,-500.0,0.00018869,2]
[351166114,1738384245414,-821.08,0.00018869,2]
[351166115,1738384245423,-501.84205113,0.00018869,2]
[351166116,1738384245432,-501.12767737,0.00018869,2]
[351166117,1738384245441,-500.0,0.00018869,2]
[351166118,1738384245450,-500.0,0.00018869,2]
[351166119,1738384245459,-501.86177827,0.00018869,2]
[351166120,1738384245468,-500.94967814,0.00018869,2]
[351166121,1738384245477,-500.0,0.00018869,2]
[351166122,1738384245487,-500.0,0.00018869,2]
[351166123,1738384245496,-501.13836757,0.00018869,2]
[351166124,1738384245505,-822.83,0.00018869,2]
[351166125,1738384245514,-500.0,0.00018869,2]
[351166126,1738384245523,-500.0,0.00018869,2]
[351166127,1738384245532,-500.0,0.00018869,2]
[351166128,1738384245541,-500.0,0.00018869,2]
[351166129,1738384245550,-791.93,0.00018869,2]
[351166130,1738384245560,-501.06237059,0.00018869,2]
[351166131,1738384245569,-501.58717757,0.00018869,2]
[351166132,1738384245578,-531.47,0.00018869,2]
[351166133,1738384245587,-501.57785262,0.00018869,2]
[351166134,1738384245596,-500.0,0.00018869,2]
[351166135,1738384245604,-501.78131601,0.00018869,2]
[351166136,1738384245614,-500.0,0.00018869,2]
[351166137,1738384245623,-501.66724461,0.00018869,2]
[351166138,1738384245632,-500.3470158,0.00018869,2]
[351166139,1738384245641,-500.0,0.00018869,2]
[351166140,1738384245651,-500.57338614,0.00018869,2]
[351166141,1738384245662,-500.0,0.00018869,2]
[351166142,1738384245670,-500.89759071,0.00018869,2]
[351166143,1738384245680,-500.0,0.00018869,2]
[351166144,1738384245690,-500.0,0.00018869,2]
[351166145,1738384245699,-500.0,0.00018869,2]
[351166146,1738384245708,-803.22,0.00018869,2]
[351166147,1738384245719,-502.08588381,0.00018869,2]
[351166148,1738384245728,-500.0,0.00018869,2]
[351166149,1738384245737,-500.0,0.00018869,2]
[351166150,1738384245747,-501.82847931,0.00018869,2]
[351166151,1738384245758,-500.0,0.00018869,2]
[351166152,1738384245768,-888.98,0.00018869,2]
[351166153,1738384245778,-500.0,0.00018869,2]
[351166154,1738384245788,-500.0,0.00018869,2]
[351166155,1738384245797,-500.0,0.00018869,2]
[351166156,1738384245806,-500.0,0.00018869,2]
[351166157,1738384245815,-500.0,0.00018869,2]
[351166158,1738384245824,-500.0,0.00018869,2]
[351166159,1738384245833,-503.80722825,0.00018869,2]
[351166160,1738384245843,-579.98557459,0.00018869,2]
[351166161,1738384245853,-500.0,0.00018869,2]
[351166162,1738384245862,-500.0,0.00018869,2]
[351166163,1738384245872,-623.72,0.00018869,2]
[351166164,1738384245881,-500.0,0.00018869,2]
[351166165,1738384245890,-986.26,0.00018869,2]
[351166166,1738384245900,-500.0,0.00018869,2]
[351166167,1738384245911,-668.53,0.00018869,2]
[351166168,1738384245920,-500.0,0.00018869,2]
[351166169,1738384245931,-500.0,0.00018869,2]
[351166170,1738384245941,-500.0,0.00018869,2]
[351166171,1738384245951,-466.04804592,0.00018869,2]
[351166172,1738384245962,-681.41,0.00018869,2]
[351166173,1738384245971,-507.82816933,0.00018869,2]
[351166174,1738384245982,-500.0,0.00018869,2]
[351166175,1738384245992,-500.0,0.00018869,2]
[351166176,1738384246001,-500.0,0.00018869,2]
[351166177,1738384246011,-501.33722717,0.00018869,2]
[351166178,1738384246020,-500.0,0.00018869,2]
[351166179,1738384246029,-500.0,0.00018869,2]
[351166180,1738384246038,-508.6149528,0.00018869,2]
[351166181,1738384246048,-500.0,0.00018869,2]
[351166182,1738384246057,-579.23,0.00018869,2]
[351166183,1738384246066,-787.28,0.00018869,2]
[351166184,1738384246076,-500.0,0.00018869,2]
[351166185,1738384246086,-500.0,0.00018869,2]
[351166186,1738384246095,-500.0,0.00018869,2]
[351166187,1738384246106,-501.34,0.00018869,2]
[351166188,1738384246115,-759.2,0.00018869,2]
[351166189,1738384246126,-769.65,0.00018869,2]
[351166190,1738384246135,-500.0,0.00018869,2]
[351166191,1738384246144,-1251.18,0.00018869,2]
[351166192,1738384246155,-614.77,0.00018869,2]
[351166193,1738384246164,-1167.64,0.00018869,2]
[351166194,1738384246175,-500.0,0.00018869,2]
[351166195,1738384246185,-1328.99,0.00018869,2]
[351166196,1738384246194,-500.0,0.00018869,2]
[351166197,1738384246204,-500.0,0.00018869,2]
[351166198,1738384246216,-174.19007991,0.00018869,2]
[351166199,1738384246228,-1050.7,0.00018869,2]
[351166200,1738384246238,-504.98389856,0.00018869,2]
[351166201,1738384246248,-532.95255944,0.00018869,2]
[351166202,1738384246258,-500.0,0.00018869,2]
[351166203,1738384246267,-569.73164154,0.00018869,2]
[351166204,1738384246278,-501.23479523,0.00018869,2]
[351166205,1738384246288,-503.36674895,0.00018869,2]
[351166206,1738384246297,-500.0,0.00018869,2]
[351166207,1738384246306,-1228.93,0.00018869,2]
[351166208,1738384246316,-500.0,0.00018869,2]
[351166209,1738384246325,-190.20381618,0.00018869,2]
[351166210,1738384246335,-506.35240156,0.00018869,2]
[351166211,1738384246345,-500.0,0.00018869,2]
[351166212,1738384246354,-4385.17,0.00018869,2]
[351166213,1738384246364,-500.0,0.00018869,2]
[351166214,1738384246373,-1464.28,0.00018869,2]
[351166215,1738384246382,-1447.32,0.00018869,2]
[351166216,1738384246391,-500.0,0.00018869,2]
[351166217,1738384246400,-502.00524719,0.00018869,2]
[351166218,1738384246409,-499.64063327,0.00018869,2]
[351166219,1738384246420,-3455.54,0.00018869,2]
[351166220,1738384246430,-502.95265022,0.00018869,2]
[351166221,1738384246439,-501.08673774,0.00018869,2]
[351166222,1738384246448,-1264.05,0.00018869,2]
[351166223,1738384246458,-2929.65,0.00018869,2]
[351166224,1738384246467,-500.0,0.00018869,2]
[351166225,1738384246476,-975.34,0.00018869,2]
[351166226,1738384246486,-975.34,0.00018869,2]
[351166227,1738384246495,-503.1564942,0.00018869,2]
[351166228,1738384246505,-975.34,0.00018869,2]
[351166229,1738384246516,-975.34,0.00018869,2]
[351166230,1738384246525,-975.34,0.00018869,2]
[351166231,1738384246535,-3629.46,0.00018869,2]
[351166232,1738384246543,-501.73174015,0.00018869,2]
[351166233,1738384246552,-1576.98,0.00018869,2]
[351166234,1738384246563,-502.84598098,0.00018869,2]
[351166235,1738384246572,-2802.36,0.00018869,2]
[351166236,1738384246581,-501.79796346,0.00018869,2]
[351166237,1738384246590,-500.0,0.00018869,2]
[351166238,1738384246601,-2716.47,0.00018869,2]
[351166239,1738384246610,-503.90561448,0.00018869,2]
[351166241,1738384246619,-504.52396363,0.00018869,2]
[351166242,1738384246629,-500.0,0.00018869,2]
[351166244,1738384246639,-631.88,0.00018869,2]
[351166246,1738384246647,-503.81217513,0.00018869,2]
[351166248,1738384246657,-500.0,0.00018869,2]
[351166249,1738384246666,-471.1264259,0.00018869,2]
[351166250,1738384246675,-1000.0,0.00018869,30]
[351166251,1738384246685,-502.98114814,0.00018869,2]
[351166252,1738384246694,-3080.6,0.00018869,2]
[351166253,1738384246703,-1049.68,0.00018869,2]
[351166254,1738384246714,-500.0,0.00018869,2]
[351166255,1738384246723,-500.0,0.00018869,2]
[351166256,1738384246733,-1142.18,0.00018869,2]
[351166257,1738384246742,-1591.0,0.0001887,2]
[351166258,1738384246751,-52526.83865516,0.0001887,2]
[351166259,1738384246761,-1000.0,0.0001887,2]
[351166260,1738384246770,-1000.0,0.0001887,2]
[351166261,1738384246779,-1000.0,0.0001887,2]
[351166262,1738384246788,-1000.0,0.0001887,2]
[351166263,1738384246797,-1000.0,0.0001887,2]
[351166264,1738384246806,-1000.0,0.0001887,2]
[351166265,1738384246815,-1000.0,0.0001887,2]
[351166266,1738384246824,-1000.0,0.0001887,2]
[351166267,1738384246833,-3000.0,0.0001887,2]
[351166268,1738384246842,-372.52,0.0001887,2]
[351166269,1738384246851,-649.63527283,0.00018873,2]
[351166270,1738384246860,-975.34,0.00018874,2]
[351166271,1738384246870,-502.58174523,0.00018875,2]
[351166272,1738384246880,-501.23203651,0.00018875,2]
[351166273,1738384246889,-501.27434785,0.00018875,2]
[351166274,1738384246898,-225.4687864,0.00018875,2]
[351166275,1738384246907,-296.43410342,0.00018875,2]
[351166276,1738384246916,-500.0,0.00018875,2]
[351166277,1738384246925,-500.0,0.00018875,2]
[351166278,1738384246934,-500.0,0.00018875,2]
[351166279,1738384246943,-500.0,0.00018875,2]
[351166280,1738384246951,-500.0,0.00018875,2]
[351166281,1738384246961,-500.0,0.00018875,2]
[351166282,1738384246970,-500.0,0.00018875,2]
[351166283,1738384246979,-500.0,0.00018875,2]
[351166284,1738384246988,-500.0,0.00018875,2]
[351166285,1738384246997,-500.0,0.00018875,2]
[351166286,1738384247007,-500.0,0.00018875,2]
[351166287,1738384247016,-520.14,0.00018875,2]
[351166288,1738384247025,-543.89720145,0.00018875,2]
[351166289,1738384247034,-500.0,0.00018875,2]
[351166290,1738384247043,-500.0,0.00018875,2]
[351166291,1738384247052,-509.37243292,0.00018875,2]
[351166292,1738384247061,-562.78,0.00018875,2]
[351166293,1738384247070,-506.87100988,0.00018875,2]
[351166294,1738384247079,-501.18591989,0.00018875,2]
[351166295,1738384247088,-500.51128078,0.00018875,2]
[351166296,1738384247097,-501.9851404,0.00018875,2]
[351166297,1738384247107,-500.0,0.00018875,2]
[351166298,1738384247116,-505.04261627,0.00018875,2]
[351166299,1738384247125,-500.0,0.00018875,2]
[351166300,1738384247135,-500.0,0.00018875,2]